[Event "*** Titled Tuesday Blitz"]
[Site "Chess.com"]
[Date "2020.05.19"]
[Round "6"]
[White "ajdemipopushi"]
[Black "doons21"]
[Result "1-0"]
[WhiteElo "2318"]
[BlackElo "2536"]
[TimeControl "180+1"]
[EndTime "13:08:46 PDT"]
[Termination "ajdemipopushi won on time"]

1. Nf3 {[%clk 0:03:00.9]} 1... Nf6 {[%clk 0:03:00.2]} 2. g3 {[%clk 0:03:01.1]}
2... g6 {[%clk 0:03:00.6]} 3. Bg2 {[%clk 0:03:01.5]} 3... Bg7 {[%clk 0:03:01.5]}
4. c4 {[%clk 0:03:02]} 4... O-O {[%clk 0:03:02.4]} 5. d4 {[%clk 0:03:02.4]} 5...
d6 {[%clk 0:03:03]} 6. Nc3 {[%clk 0:03:02.1]} 6... c6 {[%clk 0:03:03.6]} 7. O-O
{[%clk 0:03:02.2]} 7... Bf5 {[%clk 0:03:04]} 8. b3 {[%clk 0:03:01.4]} 8... Ne4
{[%clk 0:03:03.8]} 9. Bb2 {[%clk 0:03:01.9]} 9... Nxc3 {[%clk 0:03:03.6]} 10.
Bxc3 {[%clk 0:03:02.2]} 10... Be4 {[%clk 0:03:04.5]} 11. e3 {[%clk 0:03:02.7]}
11... d5 {[%clk 0:03:04.5]} 12. Qe2 {[%clk 0:03:02.7]} 12... a5 {[%clk
0:03:03.9]} 13. Rfc1 {[%clk 0:03:00.9]} 13... e6 {[%clk 0:03:02.4]} 14. Bf1
{[%clk 0:02:59.3]} 14... Bxf3 {[%clk 0:03:01.9]} 15. Qxf3 {[%clk 0:02:59.3]}
15... Nd7 {[%clk 0:03:01.5]} 16. a3 {[%clk 0:02:53]} 16... f5 {[%clk 0:02:57.8]}
17. Qd1 {[%clk 0:02:42.6]} 17... Nf6 {[%clk 0:02:52.7]} 18. b4 {[%clk
0:02:40.3]} 18... axb4 {[%clk 0:02:36.7]} 19. axb4 {[%clk 0:02:40.2]} 19... dxc4
{[%clk 0:02:33.1]} 20. Bxc4 {[%clk 0:02:37.1]} 20... Nd5 {[%clk 0:02:33.4]} 21.
Be1 {[%clk 0:02:34]} 21... Qb6 {[%clk 0:02:07.7]} 22. Qb3 {[%clk 0:02:21.4]}
22... Rxa1 {[%clk 0:01:52.2]} 23. Rxa1 {[%clk 0:02:20.4]} 23... Rd8 {[%clk
0:01:52.7]} 24. b5 {[%clk 0:02:17.5]} 24... Qc7 {[%clk 0:01:52.6]} 25. Ra7
{[%clk 0:01:47]} 25... Qb6 {[%clk 0:01:25.2]} 26. Qa4 {[%clk 0:01:39.9]} 26...
Bf8 {[%clk 0:01:16.3]} 27. bxc6 {[%clk 0:01:20.6]} 27... bxc6 {[%clk 0:01:08.5]}
28. Kf1 {[%clk 0:01:08.8]} 28... Rc8 {[%clk 0:00:58.8]} 29. Ra6 {[%clk
0:01:06.2]} 29... Qb7 {[%clk 0:00:57.8]} 30. h4 {[%clk 0:00:56.8]} 30... Be7
{[%clk 0:00:57.2]} 31. Ra7 {[%clk 0:00:56.1]} 31... Qb1 {[%clk 0:00:45.5]} 32.
Bxd5 {[%clk 0:00:56.1]} 32... Qd3+ {[%clk 0:00:45]} 33. Kg1 {[%clk 0:00:47.4]}
33... exd5 {[%clk 0:00:25.1]} 34. Rxe7 {[%clk 0:00:45.9]} 34... Qd1 {[%clk
0:00:24.9]} 35. Qa7 {[%clk 0:00:38.3]} 35... Qxe1+ {[%clk 0:00:19.9]} 36. Kg2
{[%clk 0:00:38.5]} 1-0

[Event "*** Titled Tuesday Blitz"]
[Site "Chess.com"]
[Date "2020.05.19"]
[Round "6"]
[White "Char_dasha"]
[Black "florianschwabeneder"]
[Result "0-1"]
[WhiteElo "2354"]
[BlackElo "2510"]
[TimeControl "180+1"]
[EndTime "13:08:46 PDT"]
[Termination "florianschwabeneder won by resignation"]

1. c4 {[%clk 0:03:00.4]} 1... Nf6 {[%clk 0:02:58.1]} 2. Nc3 {[%clk 0:03:00.4]}
2... e5 {[%clk 0:02:57.8]} 3. g3 {[%clk 0:02:57.5]} 3... d5 {[%clk 0:02:56.3]}
4. cxd5 {[%clk 0:02:57.3]} 4... Nxd5 {[%clk 0:02:57.2]} 5. Bg2 {[%clk
0:02:57.9]} 5... Nb6 {[%clk 0:02:57.6]} 6. e3 {[%clk 0:02:58.3]} 6... Be7 {[%clk
0:02:55.7]} 7. Nge2 {[%clk 0:02:58.4]} 7... O-O {[%clk 0:02:55.5]} 8. O-O {[%clk
0:02:59]} 8... Nc6 {[%clk 0:02:55.1]} 9. f4 {[%clk 0:02:59.1]} 9... exf4 {[%clk
0:02:33.1]} 10. Nxf4 {[%clk 0:02:58.8]} 10... Ne5 {[%clk 0:02:07.8]} 11. d4
{[%clk 0:02:58.1]} 11... Ng6 {[%clk 0:02:06.6]} 12. Nd3 {[%clk 0:02:58.2]} 12...
c6 {[%clk 0:02:05.8]} 13. b3 {[%clk 0:02:58.2]} 13... Re8 {[%clk 0:02:03.2]} 14.
Qh5 {[%clk 0:02:23]} 14... Bg5 {[%clk 0:01:56.7]} 15. Ne4 {[%clk 0:02:22.6]}
15... Bh6 {[%clk 0:01:52.2]} 16. Nf6+ {[%clk 0:02:19.5]} 16... Kh8 {[%clk
0:01:46.9]} 17. Nxe8 {[%clk 0:02:17.1]} 17... Qxe8 {[%clk 0:01:47.8]} 18. e4
{[%clk 0:02:14.5]} 18... Bxc1 {[%clk 0:01:46.2]} 19. Raxc1 {[%clk 0:02:14.6]}
19... a5 {[%clk 0:01:45.5]} 20. e5 {[%clk 0:02:14.3]} 20... a4 {[%clk
0:01:41.4]} 21. b4 {[%clk 0:02:12.4]} 21... a3 {[%clk 0:01:41.2]} 22. Be4 {[%clk
0:02:12.2]} 22... Kg8 {[%clk 0:01:37.4]} 23. Nc5 {[%clk 0:02:02]} 23... Na4
{[%clk 0:01:28.3]} 24. b5 {[%clk 0:01:38.8]} 24... Qd8 {[%clk 0:01:12.1]} 25.
Rcd1 {[%clk 0:01:17.1]} 25... Nc3 {[%clk 0:01:10.8]} 26. Rd3 {[%clk 0:00:55.8]}
26... Nxe4 {[%clk 0:01:08.6]} 27. Nxe4 {[%clk 0:00:55.4]} 27... h6 {[%clk
0:01:06.4]} 28. Nd6 {[%clk 0:00:54.9]} 28... Be6 {[%clk 0:01:05.4]} 29. Rdf3
{[%clk 0:00:54.8]} 29... Qb6 {[%clk 0:00:59.7]} 30. Nf5 {[%clk 0:00:44.1]} 30...
Bxa2 {[%clk 0:00:52.1]} 31. Qg4 {[%clk 0:00:18.8]} 31... Be6 {[%clk 0:00:49.4]}
32. h4 {[%clk 0:00:17.6]} 32... h5 {[%clk 0:00:43.7]} 33. Qg5 {[%clk 0:00:13.7]}
33... a2 {[%clk 0:00:41.3]} 34. Ra1 {[%clk 0:00:11.2]} 34... Bxf5 {[%clk
0:00:39.8]} 35. Qe3 {[%clk 0:00:10.5]} 35... Be6 {[%clk 0:00:37.9]} 36. Kh2
{[%clk 0:00:10.3]} 36... Qxb5 {[%clk 0:00:35.8]} 37. Qf2 {[%clk 0:00:10.4]}
37... Qb1 {[%clk 0:00:33.7]} 0-1

[Event "*** Titled Tuesday Blitz"]
[Site "Chess.com"]
[Date "2020.05.19"]
[Round "6"]
[White "Marty435"]
[Black "imdarealist"]
[Result "1-0"]
[WhiteElo "2415"]
[BlackElo "2240"]
[TimeControl "180+1"]
[EndTime "13:08:46 PDT"]
[Termination "Marty435 won by resignation"]

1. e4 {[%clk 0:03:00.9]} 1... e5 {[%clk 0:02:59.1]} 2. Nf3 {[%clk 0:03:01]} 2...
Nf6 {[%clk 0:02:59]} 3. Nxe5 {[%clk 0:03:00.5]} 3... d6 {[%clk 0:02:59.3]} 4.
Nf3 {[%clk 0:03:00.4]} 4... Nxe4 {[%clk 0:02:58.4]} 5. Nc3 {[%clk 0:03:00.8]}
5... Nxc3 {[%clk 0:02:57.8]} 6. dxc3 {[%clk 0:03:01.7]} 6... Be7 {[%clk
0:02:58.1]} 7. Be3 {[%clk 0:03:01.8]} 7... Be6 {[%clk 0:02:58]} 8. Qd2 {[%clk
0:03:01.7]} 8... Nc6 {[%clk 0:02:54.3]} 9. O-O-O {[%clk 0:03:01.2]} 9... Qd7
{[%clk 0:02:54.1]} 10. Kb1 {[%clk 0:02:54.9]} 10... O-O-O {[%clk 0:02:50.6]} 11.
Nd4 {[%clk 0:02:54.9]} 11... Nxd4 {[%clk 0:02:36.1]} 12. Qxd4 {[%clk 0:02:54.7]}
12... c5 {[%clk 0:02:25.2]} 13. Qxg7 {[%clk 0:02:53.8]} 13... Qa4 {[%clk
0:02:12]} 14. b3 {[%clk 0:02:51]} 14... Qa5 {[%clk 0:02:07.2]} 15. Kb2 {[%clk
0:02:32.2]} 15... Rhg8 {[%clk 0:02:03.4]} 16. Qxh7 {[%clk 0:02:28.4]} 16... Bf6
{[%clk 0:02:01.5]} 17. Bd2 {[%clk 0:02:21.7]} 17... b5 {[%clk 0:01:51.7]} 18.
Qe4 {[%clk 0:01:44.8]} 18... b4 {[%clk 0:01:21.9]} 19. Qc6+ {[%clk 0:01:34.1]}
19... Kb8 {[%clk 0:01:08]} 20. Qf3 {[%clk 0:00:52.8]} 20... Be5 {[%clk
0:00:47.9]} 21. h3 {[%clk 0:00:14.4]} 21... d5 {[%clk 0:00:30.1]} 22. Kb1 {[%clk
0:00:10.3]} 22... bxc3 {[%clk 0:00:28.6]} 23. Bf4 {[%clk 0:00:09.7]} 23... Qa3
{[%clk 0:00:25]} 24. Bxe5+ {[%clk 0:00:07.3]} 24... Ka8 {[%clk 0:00:22.6]} 25.
Bxc3 {[%clk 0:00:07.1]} 25... Rd6 {[%clk 0:00:20.5]} 26. Bb2 {[%clk 0:00:06.8]}
26... Qxb3 {[%clk 0:00:20.1]} 27. axb3 {[%clk 0:00:06.4]} 27... Rb6 {[%clk
0:00:16.3]} 28. Bc4 {[%clk 0:00:05.6]} 28... Rd8 {[%clk 0:00:14.5]} 29. Bxd5+
{[%clk 0:00:05.7]} 1-0

[Event "*** Titled Tuesday Blitz"]
[Site "Chess.com"]
[Date "2020.05.19"]
[Round "6"]
[White "IMinTheWings"]
[Black "otrov-11"]
[Result "0-1"]
[WhiteElo "2226"]
[BlackElo "2408"]
[TimeControl "180+1"]
[EndTime "13:08:46 PDT"]
[Termination "otrov-11 won on time"]

1. c4 {[%clk 0:03:00.9]} 1... Nf6 {[%clk 0:02:59.8]} 2. Nc3 {[%clk 0:03:01.2]}
2... e6 {[%clk 0:03:00.2]} 3. e4 {[%clk 0:03:01.6]} 3... d5 {[%clk 0:02:59.9]}
4. e5 {[%clk 0:03:02.1]} 4... d4 {[%clk 0:02:59.7]} 5. exf6 {[%clk 0:03:02.7]}
5... dxc3 {[%clk 0:03:00.2]} 6. bxc3 {[%clk 0:03:03.6]} 6... Qxf6 {[%clk
0:03:00.2]} 7. Nf3 {[%clk 0:03:04.2]} 7... c5 {[%clk 0:02:53.7]} 8. Bd3 {[%clk
0:03:00.6]} 8... Nc6 {[%clk 0:02:51]} 9. Qe2 {[%clk 0:03:00.7]} 9... Be7 {[%clk
0:02:46.7]} 10. O-O {[%clk 0:03:00.6]} 10... O-O {[%clk 0:02:46.1]} 11. Be4
{[%clk 0:03:00]} 11... Bd7 {[%clk 0:02:41.4]} 12. d4 {[%clk 0:03:00.1]} 12... h6
{[%clk 0:02:39.7]} 13. d5 {[%clk 0:02:41.3]} 13... Na5 {[%clk 0:02:32.9]} 14.
Bd3 {[%clk 0:02:40.5]} 14... exd5 {[%clk 0:02:27.8]} 15. cxd5 {[%clk 0:02:38.4]}
15... Bd6 {[%clk 0:02:27.3]} 16. c4 {[%clk 0:02:21.1]} 16... Qxa1 {[%clk
0:01:39.3]} 17. Bxh6 {[%clk 0:00:59.1]} 17... Qxf1+ {[%clk 0:01:13.4]} 18. Kxf1
{[%clk 0:00:59]} 18... Rfe8 {[%clk 0:01:14]} 19. Be3 {[%clk 0:00:58.3]} 19... b5
{[%clk 0:01:10.5]} 20. cxb5 {[%clk 0:00:54]} 20... c4 {[%clk 0:01:09.6]} 21. Bb1
{[%clk 0:00:51.6]} 21... Bxb5 {[%clk 0:01:09.8]} 22. Qc2 {[%clk 0:00:51.6]}
22... g6 {[%clk 0:01:02.2]} 23. Qc3 {[%clk 0:00:47.4]} 23... Rxe3 {[%clk
0:00:47.1]} 24. fxe3 {[%clk 0:00:45.3]} 24... Nb7 {[%clk 0:00:47.2]} 25. e4
{[%clk 0:00:43.6]} 25... a5 {[%clk 0:00:43.8]} 26. e5 {[%clk 0:00:43.8]} 26...
Bb4 {[%clk 0:00:44]} 27. Qe3 {[%clk 0:00:39.7]} 27... c3+ {[%clk 0:00:36]} 28.
Kf2 {[%clk 0:00:36.5]} 28... Rd8 {[%clk 0:00:28.1]} 29. d6 {[%clk 0:00:28]}
29... Nxd6 {[%clk 0:00:26.8]} 30. exd6 {[%clk 0:00:27]} 30... Rxd6 {[%clk
0:00:27.7]} 31. Qe8+ {[%clk 0:00:21.2]} 31... Bxe8 {[%clk 0:00:26.7]} 0-1

[Event "*** Titled Tuesday Blitz"]
[Site "Chess.com"]
[Date "2020.05.19"]
[Round "6"]
[White "FMOlexandrProhorov"]
[Black "agrigo3"]
[Result "1-0"]
[WhiteElo "2119"]
[BlackElo "2253"]
[TimeControl "180+1"]
[EndTime "13:08:46 PDT"]
[Termination "FMOlexandrProhorov won on time"]

1. e4 {[%clk 0:03:00.9]} 1... d6 {[%clk 0:03:00]} 2. d4 {[%clk 0:03:00.4]} 2...
Nf6 {[%clk 0:03:00.6]} 3. Nc3 {[%clk 0:03:00.5]} 3... g6 {[%clk 0:03:01.1]} 4.
Bc4 {[%clk 0:02:59.8]} 4... Bg7 {[%clk 0:03:00.5]} 5. Qe2 {[%clk 0:02:59.9]}
5... e5 {[%clk 0:02:58.2]} 6. dxe5 {[%clk 0:02:58.1]} 6... dxe5 {[%clk
0:02:58.2]} 7. Nf3 {[%clk 0:02:56.8]} 7... Qe7 {[%clk 0:02:51.1]} 8. Bg5 {[%clk
0:02:53]} 8... c6 {[%clk 0:02:51.3]} 9. O-O {[%clk 0:02:49.1]} 9... h6 {[%clk
0:02:47]} 10. Bh4 {[%clk 0:02:45.7]} 10... O-O {[%clk 0:02:46.6]} 11. h3 {[%clk
0:02:45.2]} 11... Nbd7 {[%clk 0:02:20.6]} 12. a4 {[%clk 0:02:44.2]} 12... Nc5
{[%clk 0:02:17.5]} 13. Bg3 {[%clk 0:02:38.9]} 13... Nh5 {[%clk 0:02:15.4]} 14.
Bh2 {[%clk 0:02:34.6]} 14... Nf4 {[%clk 0:02:11]} 15. Qe3 {[%clk 0:02:34.2]}
15... Nce6 {[%clk 0:02:09.2]} 16. Rfd1 {[%clk 0:02:24.2]} 16... g5 {[%clk
0:01:59.4]} 17. a5 {[%clk 0:02:18.2]} 17... Nd4 {[%clk 0:01:31.4]} 18. Rd2
{[%clk 0:02:08.8]} 18... Be6 {[%clk 0:01:15.7]} 19. Bxe6 {[%clk 0:02:00.3]}
19... fxe6 {[%clk 0:01:10]} 20. Nd1 {[%clk 0:01:52.3]} 20... Nxh3+ {[%clk
0:01:05.4]} 21. Kf1 {[%clk 0:01:48.7]} 21... Nxf3 {[%clk 0:00:56.3]} 22. gxf3
{[%clk 0:01:48.1]} 22... Rf7 {[%clk 0:00:44.4]} 23. Ke2 {[%clk 0:01:46]} 23...
Nf4+ {[%clk 0:00:43.3]} 24. Bxf4 {[%clk 0:01:44.4]} 24... exf4 {[%clk
0:00:43.6]} 25. Qb3 {[%clk 0:01:41.6]} 25... Be5 {[%clk 0:00:33.3]} 26. Nc3
{[%clk 0:01:40.5]} 26... Kg7 {[%clk 0:00:22.8]} 27. a6 {[%clk 0:01:39.5]} 27...
b6 {[%clk 0:00:21.7]} 28. Rg1 {[%clk 0:01:36.3]} 28... Kg6 {[%clk 0:00:16.1]}
29. Qc4 {[%clk 0:01:35.8]} 29... Rc8 {[%clk 0:00:13.8]} 30. b4 {[%clk
0:01:23.3]} 30... Qe8 {[%clk 0:00:13.4]} 31. Nd1 {[%clk 0:01:17.3]} 31... Kf6
{[%clk 0:00:12.7]} 32. c3 {[%clk 0:01:14.8]} 32... Rd7 {[%clk 0:00:12.2]} 33.
Nb2 {[%clk 0:01:08.3]} 33... Rcd8 {[%clk 0:00:11.7]} 34. Rxd7 {[%clk 0:01:05.7]}
34... Rxd7 {[%clk 0:00:08.7]} 35. Nd3 {[%clk 0:01:06.6]} 35... Bb8 {[%clk
0:00:05.3]} 36. Rh1 {[%clk 0:01:05.3]} 36... Kg6 {[%clk 0:00:04.5]} 37. e5
{[%clk 0:00:58.7]} 37... Rd5 {[%clk 0:00:02.9]} 38. Qe4+ {[%clk 0:00:58.4]}
38... Kg7 {[%clk 0:00:03.1]} 39. c4 {[%clk 0:00:57.4]} 39... Rxd3 {[%clk
0:00:01]} 40. Kxd3 {[%clk 0:00:57]} 40... Bxe5 {[%clk 0:00:01.6]} 41. Qxe5+
{[%clk 0:00:56.8]} 41... Kg6 {[%clk 0:00:01.1]} 42. Qe4+ {[%clk 0:00:55.2]} 1-0

[Event "*** Titled Tuesday Blitz"]
[Site "Chess.com"]
[Date "2020.05.19"]
[Round "6"]
[White "MidnightFox"]
[Black "rekosheten"]
[Result "1-0"]
[WhiteElo "2482"]
[BlackElo "2351"]
[TimeControl "180+1"]
[EndTime "13:08:49 PDT"]
[Termination "MidnightFox won on time"]

1. e4 {[%clk 0:03:00.9]} 1... c5 {[%clk 0:02:59.4]} 2. Nf3 {[%clk 0:03:00.9]}
2... e6 {[%clk 0:02:59.8]} 3. d4 {[%clk 0:03:00.9]} 3... cxd4 {[%clk 0:03:00.7]}
4. Nxd4 {[%clk 0:03:01.2]} 4... a6 {[%clk 0:03:01.4]} 5. Bd3 {[%clk 0:02:59.4]}
5... Nf6 {[%clk 0:03:00.2]} 6. O-O {[%clk 0:02:58.7]} 6... Qc7 {[%clk
0:02:59.4]} 7. Kh1 {[%clk 0:02:55.9]} 7... Nc6 {[%clk 0:02:52.8]} 8. Nxc6 {[%clk
0:02:53.8]} 8... dxc6 {[%clk 0:02:52.9]} 9. f4 {[%clk 0:02:54]} 9... e5 {[%clk
0:02:52.8]} 10. f5 {[%clk 0:02:54.2]} 10... h5 {[%clk 0:02:44.5]} 11. Nd2 {[%clk
0:02:53.7]} 11... Bc5 {[%clk 0:02:41.4]} 12. Nb3 {[%clk 0:02:47.4]} 12... Ba7
{[%clk 0:02:41.8]} 13. c4 {[%clk 0:02:47.6]} 13... Qe7 {[%clk 0:02:28.1]} 14.
Qc2 {[%clk 0:02:43.2]} 14... Ng4 {[%clk 0:02:11.2]} 15. c5 {[%clk 0:02:42.7]}
15... Bd7 {[%clk 0:02:04.4]} 16. h3 {[%clk 0:02:24.4]} 16... b6 {[%clk
0:01:55.8]} 17. Kg1 {[%clk 0:02:18.7]} 17... bxc5 {[%clk 0:01:48.5]} 18. Bc4
{[%clk 0:02:18.6]} 18... Qh4 {[%clk 0:01:36.7]} 19. Bd2 {[%clk 0:01:56.2]} 19...
Qg3 {[%clk 0:01:04.2]} 20. hxg4 {[%clk 0:01:53.3]} 20... hxg4 {[%clk 0:01:05.1]}
21. Be1 {[%clk 0:01:39.1]} 21... Qh2+ {[%clk 0:00:59.8]} 22. Kf2 {[%clk
0:01:39.2]} 22... Rh3 {[%clk 0:00:15.5]} 23. Ke2 {[%clk 0:01:21]} 23... Qxg2+
{[%clk 0:00:14.5]} 24. Rf2 {[%clk 0:01:20.6]} 24... Qh1 {[%clk 0:00:12.9]} 25.
Ba5 {[%clk 0:01:13.4]} 25... Qf3+ {[%clk 0:00:07.1]} 26. Rxf3 {[%clk 0:01:12.8]}
26... gxf3+ {[%clk 0:00:08]} 27. Ke3 {[%clk 0:00:58.6]} 27... Ke7 {[%clk
0:00:07.3]} 28. Qf2 {[%clk 0:00:53.7]} 28... Rah8 {[%clk 0:00:06.9]} 29. Nd2
{[%clk 0:00:45.9]} 29... g6 {[%clk 0:00:04.4]} 30. Nxf3 {[%clk 0:00:44.5]} 30...
gxf5 {[%clk 0:00:04]} 31. exf5 {[%clk 0:00:43.9]} 31... Bxf5 {[%clk 0:00:04.2]}
32. Kd2 {[%clk 0:00:38.5]} 32... e4 {[%clk 0:00:03.1]} 33. Re1 {[%clk
0:00:37.7]} 33... Kf8 {[%clk 0:00:01.4]} 34. Kc1 {[%clk 0:00:32.2]} 1-0

[Event "*** Titled Tuesday Blitz"]
[Site "Chess.com"]
[Date "2020.05.19"]
[Round "6"]
[White "XiaoKangZhong"]
[Black "powermove"]
[Result "1-0"]
[WhiteElo "2398"]
[BlackElo "1676"]
[TimeControl "180+1"]
[EndTime "13:08:49 PDT"]
[Termination "XiaoKangZhong won on time"]

1. e4 {[%clk 0:03:00.9]} 1... e5 {[%clk 0:02:57.5]} 2. Nf3 {[%clk 0:03:00.6]}
2... Nc6 {[%clk 0:02:57]} 3. Bc4 {[%clk 0:03:00.4]} 3... Nf6 {[%clk 0:02:56.1]}
4. d3 {[%clk 0:03:00]} 4... Bc5 {[%clk 0:02:53.9]} 5. O-O {[%clk 0:02:59.9]}
5... d6 {[%clk 0:02:50.9]} 6. c3 {[%clk 0:02:59.8]} 6... a6 {[%clk 0:02:50.2]}
7. Bb3 {[%clk 0:02:59.1]} 7... Ba7 {[%clk 0:02:49.3]} 8. Nbd2 {[%clk 0:02:56.7]}
8... O-O {[%clk 0:02:47.9]} 9. h3 {[%clk 0:02:56]} 9... Ne7 {[%clk 0:02:45.1]}
10. Re1 {[%clk 0:02:55.4]} 10... Ng6 {[%clk 0:02:44.5]} 11. Nf1 {[%clk 0:02:56]}
11... Nh5 {[%clk 0:02:27.5]} 12. d4 {[%clk 0:02:49.8]} 12... Nhf4 {[%clk
0:01:49.5]} 13. Bxf4 {[%clk 0:02:38.2]} 13... Nxf4 {[%clk 0:01:03.2]} 14. dxe5
{[%clk 0:02:36.2]} 14... dxe5 {[%clk 0:01:02.4]} 15. Qxd8 {[%clk 0:02:16]} 15...
Rxd8 {[%clk 0:00:59.6]} 16. Nxe5 {[%clk 0:02:15.3]} 16... Be6 {[%clk 0:00:52.8]}
17. Bxe6 {[%clk 0:02:07.5]} 17... fxe6 {[%clk 0:00:51.5]} 18. Rad1 {[%clk
0:02:07.2]} 18... Rd6 {[%clk 0:00:27.8]} 19. Rxd6 {[%clk 0:01:58.8]} 19... cxd6
{[%clk 0:00:27.1]} 20. Nc4 {[%clk 0:01:59]} 20... Nd3 {[%clk 0:00:24.8]} 21. Re2
{[%clk 0:01:58.2]} 21... d5 {[%clk 0:00:19.9]} 22. exd5 {[%clk 0:01:57.3]} 22...
exd5 {[%clk 0:00:20.1]} 23. Nce3 {[%clk 0:01:57.9]} 23... Rd8 {[%clk 0:00:17.2]}
24. Rd2 {[%clk 0:01:55.8]} 24... Nf4 {[%clk 0:00:13.6]} 25. Nf5 {[%clk 0:01:54]}
25... g6 {[%clk 0:00:11.5]} 26. Nd4 {[%clk 0:01:53.9]} 26... Kf7 {[%clk
0:00:10.9]} 27. Ne3 {[%clk 0:01:53.5]} 27... Bxd4 {[%clk 0:00:08]} 28. Rxd4
{[%clk 0:01:53]} 28... g5 {[%clk 0:00:06.8]} 29. g3 {[%clk 0:01:52.3]} 29...
Ne2+ {[%clk 0:00:06.8]} 30. Kf1 {[%clk 0:01:51.6]} 30... Nxd4 {[%clk 0:00:07.7]}
31. cxd4 {[%clk 0:01:52.4]} 31... Ke6 {[%clk 0:00:07.7]} 32. Ke2 {[%clk
0:01:51.8]} 32... Rc8 {[%clk 0:00:07.7]} 33. Kd2 {[%clk 0:01:51.2]} 33... b5
{[%clk 0:00:07.9]} 34. a3 {[%clk 0:01:47.8]} 34... Rf8 {[%clk 0:00:07.3]} 35.
Ke2 {[%clk 0:01:46.7]} 35... Rc8 {[%clk 0:00:07.4]} 36. Kd2 {[%clk 0:01:45.1]}
36... Rf8 {[%clk 0:00:07.4]} 37. Nd1 {[%clk 0:01:45.1]} 37... Rf7 {[%clk
0:00:06.3]} 38. Ke3 {[%clk 0:01:43.9]} 38... h5 {[%clk 0:00:06.2]} 39. f3 {[%clk
0:01:40.6]} 39... h4 {[%clk 0:00:05]} 40. g4 {[%clk 0:01:34.2]} 40... a5 {[%clk
0:00:04.5]} 41. b3 {[%clk 0:01:32.8]} 41... Rc7 {[%clk 0:00:01.8]} 42. Kd2
{[%clk 0:01:28.1]} 42... b4 {[%clk 0:00:01.9]} 43. axb4 {[%clk 0:01:25.9]} 43...
axb4 {[%clk 0:00:02.8]} 44. Nf2 {[%clk 0:01:25.8]} 44... Rf7 {[%clk 0:00:02.9]}
45. Ke2 {[%clk 0:01:22.5]} 45... Rc7 {[%clk 0:00:02.6]} 46. Kd2 {[%clk
0:01:20.6]} 46... Rf7 {[%clk 0:00:02.4]} 47. Ke3 {[%clk 0:01:20.4]} 47... Ra7
{[%clk 0:00:03]} 48. Nd3 {[%clk 0:01:20.1]} 48... Ra2 {[%clk 0:00:02.9]} 49.
Nxb4 {[%clk 0:01:18.6]} 49... Rh2 {[%clk 0:00:01.4]} 50. Nd3 {[%clk 0:01:18.2]}
50... Rxh3 {[%clk 0:00:01.4]} 51. Nf2 {[%clk 0:01:18.8]} 51... Rh2 {[%clk
0:00:01.2]} 52. Ke2 {[%clk 0:01:19.1]} 1-0

[Event "*** Titled Tuesday Blitz"]
[Site "Chess.com"]
[Date "2020.05.19"]
[Round "6"]
[White "mortngabriel"]
[Black "nitpicker"]
[Result "0-1"]
[WhiteElo "2442"]
[BlackElo "2325"]
[TimeControl "180+1"]
[EndTime "13:08:50 PDT"]
[Termination "nitpicker won on time"]

1. d4 {[%clk 0:03:00.9]} 1... Nf6 {[%clk 0:02:59.2]} 2. c4 {[%clk 0:03:00.5]}
2... e6 {[%clk 0:02:59.2]} 3. Nf3 {[%clk 0:03:00.2]} 3... b6 {[%clk 0:02:57]} 4.
g3 {[%clk 0:02:59.7]} 4... Ba6 {[%clk 0:02:55.7]} 5. Qc2 {[%clk 0:02:58.1]} 5...
Bb7 {[%clk 0:02:50.9]} 6. Bg2 {[%clk 0:02:57.8]} 6... c5 {[%clk 0:02:50.4]} 7.
d5 {[%clk 0:02:58.4]} 7... b5 {[%clk 0:02:36.7]} 8. e4 {[%clk 0:02:28.4]} 8...
bxc4 {[%clk 0:02:21.9]} 9. O-O {[%clk 0:02:27.8]} 9... Nxe4 {[%clk 0:01:59]} 10.
Qxe4 {[%clk 0:02:18.4]} 10... Bxd5 {[%clk 0:01:58.6]} 11. Qe2 {[%clk 0:02:11.1]}
11... Nc6 {[%clk 0:01:44.3]} 12. Nc3 {[%clk 0:02:10.3]} 12... Bxf3 {[%clk
0:01:36.7]} 13. Bxf3 {[%clk 0:02:05.8]} 13... Nd4 {[%clk 0:01:36.5]} 14. Qd1
{[%clk 0:01:39]} 14... Nxf3+ {[%clk 0:01:30.8]} 15. Qxf3 {[%clk 0:01:38.5]}
15... d5 {[%clk 0:01:30.7]} 16. Re1 {[%clk 0:01:28.2]} 16... Be7 {[%clk
0:01:30.1]} 17. Bf4 {[%clk 0:00:27]} 17... O-O {[%clk 0:01:29.6]} 18. Rad1
{[%clk 0:00:27.9]} 18... Bf6 {[%clk 0:01:24.7]} 19. Be5 {[%clk 0:00:26.8]} 19...
Bxe5 {[%clk 0:01:23.7]} 20. Rxe5 {[%clk 0:00:27.7]} 20... Rb8 {[%clk 0:01:20.5]}
21. Rd2 {[%clk 0:00:27.6]} 21... Qa5 {[%clk 0:01:16.5]} 22. h4 {[%clk 0:00:24]}
22... d4 {[%clk 0:01:10.4]} 23. Ne4 {[%clk 0:00:22.8]} 23... f5 {[%clk
0:01:10.5]} 24. Rxc5 {[%clk 0:00:19.7]} 24... Qb6 {[%clk 0:00:59.8]} 25. Re5
{[%clk 0:00:15]} 25... fxe4 {[%clk 0:00:56.4]} 26. Qxe4 {[%clk 0:00:15.1]} 26...
c3 {[%clk 0:00:55.4]} 27. bxc3 {[%clk 0:00:11.5]} 27... dxc3 {[%clk 0:00:54.9]}
28. Rc2 {[%clk 0:00:12]} 28... Qb1+ {[%clk 0:00:50.6]} 29. Kg2 {[%clk
0:00:11.7]} 29... Rb2 {[%clk 0:00:50.4]} 30. Rxc3 {[%clk 0:00:04.8]} 30...
Rfxf2+ {[%clk 0:00:47.6]} 31. Kh3 {[%clk 0:00:05]} 31... Qf1+ {[%clk 0:00:39.1]}
32. Kg4 {[%clk 0:00:04.7]} 32... Qd1+ {[%clk 0:00:37.6]} 33. Rf3 {[%clk
0:00:03.9]} 33... Rxf3 {[%clk 0:00:33.2]} 34. Qxf3 {[%clk 0:00:04]} 34... Rb4+
{[%clk 0:00:33.1]} 35. Re4 {[%clk 0:00:01.6]} 35... Rxe4+ {[%clk 0:00:32.3]} 0-1